bitfinex-derivatives/quotes_SOLF0:USTF0_20250216
["timestamp","ask_amount","ask_price","bid_price","bid_amount"]
[1739706163257,0.035541,193.17,193.07,1.5545]
[1739706168566,0.035541,193.17,193.08,3.238]
[1739706183662,3.1891,193.28,193.08,3.238]
[1739706184968,0.03673595,193.2,193.16,0.035541]
[1739706185268,3.1891,193.28,193.08,3.238]
[1739706185468,0.03762638,193.2,193.16,0.035541]
[1739706185669,3.1891,193.28,193.09,11.59198633]
[1739706185969,0.03290261,193.2,193.16,0.035541]
[1739706186176,3.1891,193.28,193.09,11.59198633]
[1739706186365,3.1891,193.28,193.16,0.035541]
[1739706186668,3.1891,193.28,193.09,11.59198633]
[1739706186867,0.03704065,193.24,193.2,0.035541]
[1739706193475,3.2995,193.33,193.2,0.035541]
[1739706193773,3.2995,193.33,193.1,4.40456584]
[1739706194774,0.03538087,193.23,193.2,0.03892745]
[1739706194976,193.0,193.32,193.1,4.40456584]
[1739706195165,193.0,193.32,193.09,33.1542478]
[1739706195365,193.0,193.32,193.1,0.95107278]
[1739706196075,0.03400066,193.23,193.19,0.0371727]
[1739706196274,193.0,193.32,193.1,0.95107278]
[1739706196467,0.03836268,193.23,193.19,0.03769873]
[1739706197375,193.0,193.32,193.19,0.03769873]
[1739706197571,3.2207,193.38,193.1,0.95107278]
[1739706198276,3.2207,193.38,193.11,0.95075684]
[1739706198574,0.03917737,193.26,193.22,0.03765441]
[1739706198776,193.0,193.37,193.13,0.95075684]
[1739706198979,0.03923357,193.26,193.22,0.03418351]
[1739706199172,193.0,193.37,193.15,2.52345684]
[1739706199373,193.0,193.37,193.22,0.03448478]
[1739706199374,0.03385759,193.26,193.22,0.03448478]
[1739706199675,193.0,193.37,193.16,0.95075684]
[1739706199877,193.0,193.37,193.15,1.5727]
[1739706200377,193.0,193.37,193.16,0.95075306]
[1739706200778,0.03568356,193.28,193.25,0.03672708]
[1739706200979,193.0,193.37,193.16,0.95075306]
[1739706201272,0.03572708,193.24,193.2,0.03424801]
[1739706201476,193.0,193.37,193.16,0.95075306]
[1739706201675,0.03694017,193.24,193.2,0.03704679]
[1739706201877,193.0,193.37,193.16,0.95075306]
[1739706202078,0.03954758,193.24,193.2,0.03671308]
[1739706202376,193.0,193.37,193.2,0.03797801]
[1739706202679,193.0,193.37,193.16,0.95075306]
[1739706203677,0.0384761,193.28,193.25,0.03805654]
[1739706203877,193.0,193.37,193.16,0.95075306]
[1739706204073,0.03530912,193.28,193.25,0.03279223]
[1739706204279,1.6386,193.38,193.16,0.95075306]
[1739706204470,0.03803206,193.28,193.25,0.03477862]
[1739706204780,1.6386,193.38,193.16,0.95066378]
[1739706204968,0.03521703,193.28,193.25,0.03869948]
[1739706205173,1.6386,193.38,193.16,0.95066378]
[1739706205374,0.03339802,193.28,193.25,0.03780034]
[1739706205674,1.6386,193.38,193.16,0.95066378]
[1739706205877,0.037955,193.28,193.25,0.0356792]
[1739706206171,1.6386,193.38,193.16,0.95066378]
[1739706206376,0.03287388,193.28,193.25,0.03948829]
[1739706206578,1.6386,193.38,193.15,30.32238196]
[1739706206774,0.03526298,193.28,193.25,0.03361724]
[1739706206978,1.6386,193.38,193.15,30.32238196]
[1739706207273,0.03667529,193.28,193.25,0.03975291]
[1739706207477,1.6386,193.38,193.15,1.5727]
[1739706207677,0.03725027,193.28,193.25,0.03932223]
[1739706207878,1.6386,193.38,193.16,1.6173]
[1739706208080,0.03851732,193.28,193.25,0.03346558]
[1739706208278,1.6386,193.38,193.16,1.6173]
[1739706208578,0.03599716,193.28,193.25,0.03360139]
[1739706208772,1.6386,193.38,193.16,1.6173]
[1739706208970,0.03645772,193.28,193.25,0.03655592]
[1739706209174,1.6386,193.38,193.16,1.6173]
[1739706209377,0.03317558,193.28,193.25,0.0356002]
[1739706209573,1.6386,193.38,193.16,1.6173]
[1739706209783,0.03449314,193.28,193.25,0.03806723]
[1739706210082,1.6386,193.38,193.16,1.6173]
[1739706210282,0.0392478,193.28,193.25,0.03560609]
[1739706210483,1.6386,193.38,193.16,1.6173]
[1739706210681,0.03623444,193.28,193.25,0.03508638]
[1739706210887,1.6386,193.38,193.16,1.6173]
[1739706211081,0.03840181,193.28,193.25,0.03315035]
[1739706211383,1.6386,193.38,193.16,1.6173]
[1739706211580,0.03862719,193.28,193.25,0.03630746]
[1739706211781,1.6386,193.38,193.16,1.6173]
[1739706211982,1.6386,193.38,193.25,0.03597932]
[1739706212181,0.03864813,193.33,193.16,1.6173]
[1739706212383,1.6386,193.38,193.3,0.03448372]
[1739706212585,0.03979153,193.26,193.16,1.6173]
[1739706212780,1.6386,193.38,193.16,1.6173]
[1739706212980,0.03614914,193.23,193.19,0.03478726]
[1739706213284,0.03614914,193.23,193.19,0.03833214]
[1739706213285,0.03472004,193.23,193.19,0.03833214]
[1739706230897,0.03472004,193.23,193.19,33.17915132]
[1739706233201,0.03472004,193.23,193.19,7.22575263]
[1739706235802,0.03472004,193.23,193.19,0.03833214]
[1739706241405,193.0,193.37,193.19,0.03833214]
[1739706241704,193.0,193.37,193.18,33.15596538]
[1739706242602,0.03981243,193.29,193.26,0.03698938]
[1739706242903,193.0,193.37,193.26,0.03698938]
[1739706243404,0.03438125,193.33,193.18,33.15596538]
[1739706243599,193.0,193.37,193.18,33.15596538]
[1739706244006,193.0,193.37,193.2,28.74968196]
[1739706244408,0.03941778,193.3,193.27,0.03261676]
[1739706244606,193.0,193.37,193.27,0.03261676]
[1739706244906,0.03941076,193.3,193.27,0.03261676]
[1739706245205,0.03446566,193.3,193.27,0.03261676]
[1739706249911,0.03446566,193.3,193.18,7.18742049]
[1739706250110,193.0,193.36,193.18,7.18742049]
[1739706250305,193.0,193.35,193.18,7.18742049]
[1739706250802,193.0,193.35,193.17,33.15596538]
[1739706251207,0.03657177,193.28,193.24,0.0344549]
[1739706251408,0.03657177,193.28,193.17,33.15596538]
[1739706252514,0.03657177,193.28,193.21,0.03686329]
[1739706252718,0.03657177,193.28,193.17,33.15596538]
[1739706253912,0.03657177,193.28,193.21,0.03673671]
[1739706288045,0.03657177,193.28,193.21,3.34053671]
[1739706288232,193.0,193.37,193.21,3.34053671]
[1739706288437,3.3323,193.39,193.21,3.3038]
[1739706289341,0.03320163,193.32,193.28,0.03818885]
[1739706316056,3.3323,193.39,193.28,0.03818885]
[1739706317260,0.03645603,193.35,193.28,0.03818885]
[1739706320471,0.03645603,193.35,193.28,33.17805456]
[1739706322770,0.03645603,193.35,193.28,7.22560934]
[1739706325165,0.03645603,193.35,193.28,0.03818885]
[1739706346884,0.03645603,193.35,193.17,144.80968196]
[1739706347079,193.0,193.34,193.17,144.80968196]
[1739706347283,3.281,193.33,193.17,144.80968196]
[1739706347987,3.281,193.33,193.17,116.06]
[1739706348187,0.03388581,193.27,193.23,0.0369246]
[1739706379205,193.0,193.26,193.23,0.0369246]
[1739706382805,0.03388581,193.27,193.23,0.0369246]
[1739706383111,3.281,193.33,193.23,0.0369246]
[1739706384212,0.03497025,193.3,193.23,0.0369246]
[1739706387318,3.2785,193.4,193.23,0.0369246]
[1739706387518,3.2785,193.4,193.17,1.5324]
[1739706388512,0.03526414,193.3,193.27,0.03583772]
[1739706388719,3.2785,193.4,193.17,1.5324]
[1739706388919,0.03286803,193.3,193.27,0.03870486]
[1739706389121,3.2785,193.4,193.17,1.5324]
[1739706389315,0.03262998,193.3,193.27,0.03562033]
[1739706389520,3.2785,193.4,193.18,4.38733993]
[1739706389820,0.03503294,193.3,193.27,0.03978325]
[1739706390021,3.2785,193.4,193.18,4.38733993]
[1739706390319,0.03663936,193.3,193.27,0.03887058]
[1739706390514,0.03663936,193.3,193.18,4.38733993]
[1739706390720,3.2785,193.4,193.27,0.03528704]
[1739706390916,0.03261548,193.26,193.18,4.38733993]
[1739706391122,3.2785,193.4,193.27,0.03589064]
[1739706391323,3.2785,193.4,193.18,4.38733993]
[1739706392023,3.2785,193.4,193.17,1.5324]
[1739706392218,0.03967856,193.3,193.27,0.03685484]
[1739706392623,3.2785,193.4,193.17,1.5324]
[1739706392821,0.03425837,193.3,193.27,0.03871519]
[1739706393024,3.2785,193.4,193.17,1.5324]
[1739706393224,0.03521863,193.3,193.27,0.03271018]
[1739706393525,3.2785,193.4,193.18,0.95066651]
[1739706393823,0.03746581,193.3,193.27,0.03600536]
[1739706394024,3.2785,193.4,193.18,0.95066651]
[1739706394225,0.03492739,193.3,193.27,0.03742622]
[1739706394422,3.2785,193.4,193.18,0.95066651]
[1739706394621,0.03896212,193.3,193.27,0.03543497]
[1739706394925,3.2785,193.4,193.18,0.95066651]
[1739706395224,0.03929114,193.3,193.27,0.03847774]
[1739706395423,3.2785,193.4,193.18,0.95066651]
[1739706395623,3.2785,193.4,193.27,0.03326523]
[1739706395825,3.2785,193.4,193.18,0.95066651]
[1739706396026,3.2785,193.4,193.32,0.03729463]
[1739706396217,0.03515423,193.31,193.19,1.6563]
[1739706396421,3.2785,193.4,193.19,1.6563]
[1739706396618,0.03338233,193.27,193.23,0.0358491]
[1739706396821,3.2785,193.4,193.19,1.6563]
[1739706397025,0.03722057,193.27,193.23,0.03976351]
[1739706397225,3.2785,193.4,193.19,1.6563]
[1739706397426,0.03843549,193.27,193.23,0.03839046]
[1739706397625,3.2785,193.4,193.19,1.6563]
[1739706397826,0.03307994,193.27,193.23,0.03792812]
[1739706398029,3.2785,193.4,193.19,1.6563]
[1739706398229,0.03560644,193.27,193.23,0.03406517]
[1739706398526,3.2785,193.4,193.19,1.6563]
[1739706398736,0.03622318,193.27,193.23,0.03745683]
[1739706399030,0.03576296,193.27,193.23,0.0376747]
[1739706399230,1.6477,193.4,193.23,0.0376747]
[1739706399530,1.6477,193.4,193.2,0.95056535]
[1739706400334,0.03555715,193.32,193.28,0.03863694]
[1739706400831,0.03555715,193.32,193.28,0.03863945]
[1739706400832,0.03953671,193.32,193.28,0.03863945]
[1739706418648,3.1714,193.4,193.28,0.03863945]
[1739706418846,3.1714,193.4,193.22,21.56226147]
[1739706419148,3.1714,193.4,193.23,3.2317]
[1739706419744,0.03550449,193.33,193.3,0.03668803]
[1739706419947,3.1714,193.4,193.3,0.03668803]
[1739706420145,0.0345344,193.33,193.3,0.03668803]
[1739706420348,3.1714,193.4,193.3,0.03668803]
[1739706420850,0.03381704,193.37,193.3,0.03668803]
[1739706488100,0.03381704,193.37,193.31,7.18742049]
[1739706490210,0.03381704,193.37,193.3,7.22410852]
[1739706492008,0.03381704,193.37,193.3,11.62106356]
[1739706496014,0.03381704,193.37,193.3,0.03668803]
[1739706503318,0.03381704,193.37,193.3,1.63548803]
[1739706503618,0.03381704,193.37,193.31,1.5566]
[1739706505022,0.03381704,193.37,193.31,8.74402049]
[1739706508022,3.1576,193.48,193.31,8.74402049]
[1739706509619,0.03481915,193.41,193.38,0.03893913]
[1739706509919,3.1576,193.48,193.38,0.03893913]
[1739706510119,0.03812668,193.41,193.38,0.03893913]
[1739706510419,3.1576,193.48,193.38,0.03893913]
[1739706510617,0.03967969,193.41,193.38,0.03893913]
[1739706510819,3.1576,193.48,193.38,0.03893913]
[1739706511024,0.03674928,193.41,193.38,0.03893913]
[1739706511225,3.1576,193.48,193.38,0.03893913]
[1739706511426,0.03406287,193.41,193.38,0.03893913]
[1739706511626,3.1576,193.48,193.38,0.03893913]
[1739706512222,0.03972251,193.45,193.38,0.03893913]
[1739706539445,0.03972251,193.45,193.38,4.42050944]
[1739706542055,0.03972251,193.45,193.39,7.18742049]
[1739706545255,0.03972251,193.45,193.39,4.38157031]
[1739706547554,0.03972251,193.45,193.38,0.03893913]
[1739706564366,0.03972251,193.45,193.38,4.42991509]
[1739706567366,0.03972251,193.45,193.39,7.18742049]
[1739706567567,0.03972251,193.45,193.39,8.73812049]
[1739706569371,0.03972251,193.45,193.4,4.39097596]
[1739706571471,0.03972251,193.45,193.39,8.73812049]
[1739706573575,0.03972251,193.45,193.39,30.30038196]
[1739706573769,0.03972251,193.45,193.39,36.98038196]
[1739706575978,0.03972251,193.45,193.4,4.39011183]
[1739706578883,0.03972251,193.45,193.4,11.57753232]
[1739706583685,193.0,193.56,193.4,11.57753232]
[1739706584689,0.03563647,193.5,193.46,0.03974347]
[1739706596495,0.03563647,193.5,193.46,1.65534347]
[1739706597496,3.1469,193.57,193.46,1.65534347]
[1739706598695,0.03530371,193.53,193.46,1.65534347]
[1739706600795,0.03530371,193.53,193.46,0.03974347]
[1739706663643,193.03530371,193.53,193.46,0.03974347]
[1739706667444,0.03530371,193.53,193.46,0.03974347]
[1739706697367,193.0,193.52,193.46,0.03974347]
[1739706697567,9.8391,193.51,193.46,0.03974347]
[1739706697767,193.0,193.5,193.46,0.03974347]
[1739706698066,199.68,193.5,193.46,0.03974347]
[1739706698667,193.0,193.5,193.46,0.03974347]
[1739706726779,50.40922811,193.53,193.46,0.03974347]
[1739706729887,65.92922811,193.53,193.46,0.03974347]
[1739706732487,50.40922811,193.53,193.46,0.03974347]
[1739706735493,65.92922811,193.53,193.46,0.03974347]
[1739706737100,81.44922811,193.53,193.38,1.521]
[1739706737300,81.4139244,193.53,193.32,28.74968196]
[1739706737493,86.81429684,193.53,193.32,30.42338196]
[1739706738300,0.03337911,193.44,193.41,0.03398275]
[1739706738494,86.81429684,193.53,193.32,30.42338196]
[1739706738691,0.03537682,193.44,193.41,0.03402778]
[1739706738995,86.81429684,193.53,193.32,30.42338196]
[1739706739299,0.03670824,193.44,193.41,0.03898237]
[1739706739602,0.03465867,193.44,193.41,0.0362106]
[1739706762614,193.0,193.43,193.41,0.0362106]
[1739706768618,0.03465867,193.44,193.41,0.0362106]
[1739706780327,193.0,193.43,193.41,0.0362106]
[1739706780826,193.0,193.42,193.32,1.6737]
[1739706781126,193.0,193.41,193.32,1.6737]
[1739706781923,0.03557413,193.38,193.35,0.03358875]
[1739706783630,193.0,193.41,193.35,0.03358875]
[1739706784735,0.03831648,193.4,193.35,0.03358875]
[1739706785426,187.9718,193.41,193.35,0.03358875]
[1739706785627,3.1126,193.5,193.35,0.03358875]
[1739706785935,3.1126,193.5,193.32,1.6737]
[1739706786232,50.3739244,193.53,193.32,1.6737]
[1739706786621,0.03456115,193.44,193.41,0.03614756]
[1739706786823,185.4577,193.52,193.32,1.6737]
[1739706787023,0.03400799,193.44,193.41,0.035419]
[1739706787224,185.4577,193.52,193.32,1.6737]
[1739706787530,0.03562541,193.44,193.41,0.03759569]
[1739706787732,185.4577,193.51,193.32,1.6737]
[1739706787934,0.03523952,193.44,193.41,0.03969012]
[1739706788130,185.4577,193.49,193.32,1.6737]
[1739706788339,0.03753385,193.44,193.41,0.03351442]
[1739706788629,3.2833,193.48,193.33,33.15093616]
[1739706788837,0.03317889,193.44,193.41,0.03690298]
[1739706813155,1.6631,193.52,193.41,0.03690298]
[1739706813663,235.8316244,193.53,193.41,0.03690298]
[1739706813863,235.8316244,193.53,193.33,0.94986119]
[1739706814060,235.8316244,193.53,193.34,0.94985814]
[1739706814260,0.03599447,193.45,193.42,0.03485599]
[1739706814566,235.8316244,193.53,193.42,0.03485599]
[1739706815061,0.03712062,193.49,193.42,0.03485599]
[1739706857796,0.03712062,193.49,193.43,7.18742049]
[1739706861596,0.03712062,193.49,193.42,33.18052568]
[1739706864997,0.03712062,193.49,193.43,11.58340822]
[1739706867402,0.03712062,193.49,193.42,7.22227648]
[1739706868894,0.03712062,193.49,193.42,0.03485599]
[1739706871503,0.03712062,193.49,193.42,4.42408103]
[1739706873404,0.03712062,193.49,193.42,11.61150152]
[1739706875101,0.03712062,193.49,193.43,1.6272]
[1739706875301,0.03712062,193.49,193.43,3.1667]
[1739706878410,0.03712062,193.49,193.44,0.94936424]
[1739706879209,0.03712062,193.49,193.44,12.52398712]
[1739706879413,0.03712062,193.49,193.44,11.57462288]
[1739706881722,0.03712062,193.49,193.45,7.18742049]
[1739706883920,0.03712062,193.49,193.45,11.57462288]
[1739706886017,0.03712062,193.49,193.45,33.13688435]
[1739706888921,0.03712062,193.49,193.46,4.38720239]
[1739706889522,3.1213,193.59,193.46,4.38720239]
[1739706890823,0.02337507,193.54,193.51,0.03513659]
[1739706901223,0.02337507,193.54,193.46,59.07805157]
[1739706902323,0.02337507,193.54,193.48,0.0389214]
[1739706945658,0.02337507,193.54,193.48,28.78860336]
[1739706947566,0.02337507,193.54,193.49,4.39440928]
[1739706950175,200.9877,193.71,193.49,4.39440928]
[1739706950374,4.6941,193.7,193.49,4.39440928]
[1739706951482,0.03513659,193.61,193.58,0.03727399]
[1739706951770,58.21472239,193.7,193.49,4.39440928]
[1739706951975,0.03499913,193.61,193.58,0.03350499]
[1739706952176,58.21472239,193.7,193.5,3.1069]
[1739706952374,0.03513659,193.61,193.58,0.03345554]
[1739706952573,58.21472239,193.7,193.5,3.1069]
[1739706952775,0.03513659,193.61,193.58,0.03368991]
[1739706953070,58.21472239,193.7,193.5,3.1069]
[1739706953276,0.03513659,193.61,193.58,0.03306694]
[1739706953476,58.21472239,193.7,193.51,0.94901857]
[1739706953672,0.03513659,193.61,193.58,0.03270204]
[1739706953876,3.2245,193.69,193.51,0.94901857]
[1739706954077,0.03513659,193.61,193.58,0.03436369]
[1739706954278,3.2245,193.69,193.58,0.03436369]
[1739706954479,0.03513659,193.61,193.58,0.03436369]
[1739706954672,3.2245,193.69,193.58,0.03436369]
[1739706954878,0.03513659,193.61,193.58,0.03436369]
[1739706955074,3.2245,193.69,193.58,0.03436369]
[1739706955272,0.03513659,193.61,193.58,0.03436369]
[1739706955471,3.2245,193.69,193.58,0.03436369]
[1739706955683,0.03513659,193.61,193.58,0.03436369]
[1739706955882,3.2245,193.69,193.58,0.03436369]
[1739706956376,0.03513659,193.65,193.58,0.03436369]
[1739707023131,0.03513659,193.65,193.58,7.22178418]
[1739707024531,0.03513659,193.65,193.58,10.45488418]
[1739707025135,0.03513659,193.65,193.58,14.85125588]
[1739707028133,0.03513659,193.65,193.6,28.74968196]
[1739707031439,0.03513659,193.65,193.59,28.74968196]
[1739707033236,1.5879,193.77,193.59,28.74968196]
[1739707033937,1.5879,193.77,193.6,7.18742049]
[1739707034339,1.5879,193.77,193.67,0.03617225]
[1739707034737,3.1993,193.77,193.67,0.03617225]
[1739707041241,15.53,193.9,193.67,0.03617225]
[1739707041446,4.6846,193.89,193.62,7.18742049]
[1739707041645,4.6846,193.89,193.77,0.03395974]
[1739707041848,4.6846,193.89,193.64,115.84]
[1739707042042,4.6846,193.89,193.81,0.03894172]
[1739707042244,4.6846,193.89,193.65,3.1363]
[1739707042547,4.6846,193.89,193.83,0.03576118]
[1739707042846,4.6846,193.89,193.84,0.03828622]
[1739707043047,4.6846,193.89,193.65,3.1363]
[1739707043346,4.6846,193.89,193.75,0.03418303]
[1739707043545,4.6846,193.89,193.65,3.1363]
[1739707043747,4.6846,193.89,193.8,0.0378937]
[1739707044047,4.6846,193.89,193.65,3.1363]
[1739707044246,4.6846,193.89,193.83,0.03883432]
[1739707044441,4.6846,193.89,193.65,3.1363]
[1739707044842,4.6846,193.89,193.75,0.03474702]
[1739707045042,4.6846,193.89,193.65,3.1363]
[1739707045243,4.6846,193.89,193.8,0.03382401]
[1739707045444,4.6846,193.89,193.66,11.54686242]
[1739707045945,4.6846,193.89,193.76,0.03325398]
[1739707046247,4.6846,193.89,193.66,11.54686242]
[1739707046646,4.6846,193.89,193.76,0.03640245]
[1739707046845,4.6846,193.89,193.66,11.54686242]
[1739707047046,4.6846,193.89,193.81,0.03625246]
[1739707047247,4.6846,193.89,193.66,11.54686242]
[1739707047447,4.6846,193.89,193.83,0.03499919]
[1739707047644,4.6846,193.89,193.66,11.54686242]
[1739707047846,4.6846,193.89,193.84,0.03270916]
[1739707048150,4.6846,193.89,193.76,0.035317]
[1739707048448,4.6846,193.89,193.85,0.03949819]
[1739707048647,4.6846,193.89,193.65,3.1363]
[1739707049049,4.6846,193.89,193.75,0.03705284]
[1739707049250,4.6846,193.89,193.65,3.1363]
[1739707049450,4.6846,193.89,193.8,0.03374995]
[1739707049645,4.6846,193.89,193.65,3.1363]
[1739707050045,4.6846,193.89,193.75,0.03715356]
[1739707050240,4.6846,193.89,193.65,3.1363]
[1739707050448,4.6846,193.89,193.8,0.03460004]
[1739707050648,4.6846,193.89,193.65,3.1363]
[1739707051148,4.6846,193.89,193.75,0.03748216]
[1739707051350,4.6846,193.89,193.65,3.1363]
[1739707051545,4.6846,193.89,193.8,0.03973162]
[1739707051746,4.6846,193.89,193.65,3.1363]
[1739707051948,4.6846,193.89,193.83,0.03892845]
[1739707052148,4.6846,193.89,193.65,3.1363]
[1739707052650,4.6846,193.89,193.75,0.03689623]
[1739707052849,4.6846,193.89,193.65,3.1363]
[1739707053346,4.6846,193.89,193.75,0.03719571]
[1739707053552,4.6846,193.89,193.65,3.1363]
[1739707054053,4.6846,193.89,193.75,0.03375798]
[1739707054249,4.6846,193.89,193.65,3.1363]
[1739707054451,4.6846,193.89,193.8,0.03955545]
[1739707054649,4.6846,193.89,193.65,3.1363]
[1739707055254,20.1846,193.89,193.65,3.1363]
[1739707055755,0.0332171,193.79,193.75,0.03257832]
[1739707056055,20.1846,193.89,193.65,3.1363]
[1739707056355,0.03296687,193.79,193.75,0.03711546]
[1739707056549,20.1846,193.89,193.65,3.1363]
[1739707056747,20.1846,193.89,193.75,0.03509679]
[1739707056748,0.0334363,193.79,193.75,0.03509679]
[1739707056953,20.1846,193.89,193.65,3.1363]
[1739707057156,0.03890268,193.79,193.75,0.03577288]
[1739707057358,20.1846,193.89,193.65,3.1363]
[1739707057558,0.03653621,193.79,193.75,0.03539312]
[1739707057858,20.1846,193.89,193.65,3.1363]
[1739707058057,0.03868627,193.79,193.75,0.03884812]
[1739707058258,20.1846,193.89,193.65,3.1363]
[1739707058455,0.03548894,193.79,193.75,0.03548782]
[1739707058658,20.1846,193.89,193.65,3.1363]
[1739707058859,0.03399346,193.79,193.75,0.03528643]
[1739707059159,20.1846,193.89,193.65,3.1363]
[1739707059359,0.03680655,193.79,193.75,0.03518754]
[1739707059660,20.1846,193.89,193.65,3.1363]
[1739707059851,0.03361134,193.79,193.65,3.1363]
[1739707060160,20.1846,193.89,193.7,0.03972781]
[1739707060359,0.03406867,193.74,193.65,3.1363]
[1739707060560,20.1846,193.89,193.65,3.1363]
[1739707060759,0.03600705,193.71,193.68,0.03752945]
[1739707060960,20.1846,193.89,193.65,10.32372049]
[1739707061156,0.03268265,193.71,193.68,0.0348993]
[1739707061457,0.03313209,193.71,193.68,0.03443762]
[1739707062059,20.1846,193.89,193.68,0.03443762]
[1739707062255,20.1846,193.89,193.65,10.32372049]
[1739707063260,20.1846,193.89,193.75,0.03805275]
[1739707063460,20.1846,193.89,193.65,10.32372049]
[1739707063759,20.1846,193.89,193.66,4.36352049]
[1739707063959,20.1846,193.89,193.75,0.03358804]
[1739707064161,20.1846,193.89,193.66,4.36352049]
[1739707064361,20.1846,193.89,193.8,0.03427132]
[1739707064562,20.1846,193.89,193.66,4.36352049]
[1739707064762,20.1846,193.89,193.83,0.03822836]
[1739707064959,20.1846,193.89,193.66,4.36352049]
[1739707065156,20.1846,193.89,193.84,0.0348749]
[1739707065459,20.1846,193.89,193.76,0.03839432]
[1739707065661,20.1846,193.89,193.76,0.03715782]
[1739707065858,20.1846,193.89,193.66,11.55094098]
[1739707066054,20.1846,193.89,193.81,0.03529625]
[1739707066258,20.1846,193.89,193.66,11.55094098]
[1739707066761,20.1846,193.89,193.76,0.03669861]
[1739707066962,20.1846,193.89,193.66,11.55094098]
[1739707067166,20.1846,193.89,193.81,0.03266716]
[1739707067463,20.1846,193.89,193.66,11.55094098]
[1739707067663,20.1846,193.89,193.83,0.03961432]
[1739707067864,20.1846,193.89,193.84,0.03397985]
[1739707068065,20.1846,193.89,193.66,11.55094098]
[1739707068261,20.1846,193.89,193.85,0.03465507]
[1739707068459,20.1846,193.89,193.67,33.11320245]
[1739707068662,20.1846,193.89,193.85,0.03546069]
[1739707068964,20.1846,193.89,193.85,0.03525023]
[1739707096094,4.6846,193.89,193.85,0.03525023]
[1739707102901,4.6846,193.89,193.72,7.18742049]
[1739707104013,0.0362482,193.82,193.79,0.03633531]
[1739707104202,4.6846,193.89,193.79,0.03633531]
[1739707104402,0.0385623,193.82,193.79,0.03633531]
[1739707104602,4.6846,193.89,193.79,0.03633531]
[1739707105208,0.0368578,193.86,193.79,0.03633531]
[1739707193272,185.4577,193.85,193.79,0.03633531]
[1739707200178,0.0368578,193.86,193.79,0.03633531]
[1739707212592,0.0368578,193.86,193.68,0.0697]
[1739707212789,0.0368578,193.86,193.66,28.74968196]
[1739707212991,0.79501291,193.92,193.66,28.74968196]
[1739707213293,31.01,193.91,193.66,7.18742049]
[1739707213488,1.03145951,193.9,193.66,7.18742049]
[1739707213886,0.03540747,193.8,193.76,0.03386067]
[1739707214193,1.03145951,193.9,193.66,7.18742049]
[1739707214394,0.0372194,193.8,193.76,0.03840744]
[1739707214798,31.01,193.87,193.66,7.18742049]
[1739707215096,0.03358955,193.8,193.76,0.03568445]
[1739707215297,15.5,193.78,193.66,7.18742049]
[1739707215594,185.4577,193.79,193.66,7.18742049]
[1739707215595,15.5,193.76,193.66,7.18742049]
[1739707215796,15.5,193.76,193.64,1.5866]
[1739707216388,0.03854073,193.72,193.68,0.03772851]
[1739707223200,185.4577,193.71,193.59,1.6421]
[1739707223506,185.4577,193.7,193.59,1.6421]
[1739707224704,0.03498954,193.66,193.63,0.03265233]
[1739707226001,0.03498954,193.66,193.48,1.6147]
[1739707226305,185.4577,193.65,193.49,1.8017]
[1739707227196,185.4577,193.65,193.55,0.03573002]
[1739707227501,0.03389165,193.59,193.55,0.03573002]
[1739707234512,0.03389165,193.59,193.39,0.1834]
[1739707234714,185.4577,193.58,193.39,0.1834]
[1739707235610,0.03517507,193.5,193.47,0.03354749]
[1739707235815,185.4577,193.58,193.47,0.03354749]
[1739707236014,0.03491371,193.5,193.47,0.03354749]
[1739707236214,0.79644876,193.64,193.39,0.1834]
[1739707236411,0.0339083,193.5,193.43,0.03553009]
[1739707236612,15.5,193.6,193.39,0.1834]
[1739707236816,0.03695487,193.48,193.45,0.03747397]
[1739707237007,200.9577,193.59,193.39,0.1834]
[1739707237212,0.03762393,193.48,193.45,0.03700732]
[1739707237412,185.4577,193.58,193.39,0.1834]
[1739707237712,0.03347234,193.48,193.45,0.03815521]
[1739707237913,185.4577,193.58,193.39,0.1834]
[1739707238216,0.03685046,193.45,193.42,0.03460763]
[1739707238514,0.03924135,193.45,193.42,0.03704799]
[1739707239814,1.6559,193.59,193.42,0.03704799]
[1739707240015,1.6559,193.59,193.4,0.94968432]
[1739707240716,1.6559,193.59,193.41,0.94960103]
[1739707240915,1.6559,193.59,193.39,0.1834]
[1739707241115,0.03401317,193.52,193.48,0.03887191]
[1739707262628,185.4577,193.64,193.48,0.03887191]
[1739707262827,185.4577,193.64,193.4,0.94967876]
[1739707263632,0.03811756,193.54,193.5,0.03934784]
[1739707263931,3.2482,193.68,193.43,0.94967876]
[1739707264828,3.2482,193.68,193.44,0.94930798]